fUSD/lending_fUSD_20240513
["ID","MTS","AMOUNT","RATE_DAILY","PERIOD"]
[326934241,1715616641232,-207.58542229,0.00012879,2]
[326934242,1715616641242,-500.0,0.00012879,2]
[326934243,1715616641253,-500.0,0.00012879,2]
[326934244,1715616641263,-500.0,0.00012879,2]
[326934245,1715616641274,-500.0,0.00012879,2]
[326934246,1715616641284,-527.90615486,0.00012879,2]
[326934247,1715616641297,-500.0,0.00012879,2]
[326934248,1715616641309,-500.0,0.00012879,2]
[326934249,1715616641319,-500.0,0.00012879,2]
[326934250,1715616641329,-500.0,0.00012879,2]
[326934251,1715616641342,-500.0,0.00012879,2]
[326934252,1715616641352,-500.0,0.00012879,2]
[326934253,1715616641362,-951.95,0.00012879,2]
[326934254,1715616641374,-951.95,0.00012879,2]
[326934255,1715616641384,-951.95,0.00012879,2]
[326934256,1715616641395,-951.95,0.00012879,2]
[326934257,1715616641405,-636.0732779,0.00012879,2]
[326934258,1715616641456,-315.8767221,0.00012879,2]
[326934259,1715616641466,-428.89872586,0.00012879,2]
[326934411,1715616643088,-71.10127414,0.00012879,2]
[326934413,1715616643099,-393.19964306,0.00012879,2]
[326934415,1715616643109,-1408.1,0.00012879,2]
[326934417,1715616643119,-1408.1,0.00012879,2]
[326934419,1715616643130,-1408.1,0.00012879,2]
[326934421,1715616643140,-1408.1,0.00012879,2]
[326934423,1715616643150,-1408.1,0.00012879,2]
[326934425,1715616643162,-1660.05,0.00012879,2]
[326934427,1715616643172,-1660.05,0.00012879,2]
[326934428,1715616643183,-1660.05,0.00012879,2]
[326934430,1715616643193,-1660.05,0.00012879,2]
[326934432,1715616643204,-1660.05,0.00012879,2]
[326934434,1715616643214,-3320.94,0.00012879,2]
[326934436,1715616643224,-3320.94,0.00012879,2]
[326934438,1715616643235,-3320.94,0.00012879,2]
[326934440,1715616643245,-3320.94,0.00012879,2]
[326934442,1715616643255,-3320.94,0.00012879,2]
[326934444,1715616643266,-3320.94,0.00012879,2]
[326934446,1715616643276,-558.05909295,0.00012879,2]
[326934448,1715616643286,-1223.1,0.00012879,2]
[326934450,1715616643301,-1223.1,0.00012879,2]
[326934452,1715616643311,-1223.1,0.00012879,2]
[326934454,1715616643322,-1223.1,0.00012879,2]
[326934456,1715616643332,-1223.1,0.00012879,2]
[326934458,1715616643343,-1226.6,0.00012879,2]
[326934460,1715616643354,-1226.6,0.00012879,2]
[326934462,1715616643364,-1226.6,0.00012879,2]
[326934464,1715616643376,-1226.6,0.00012879,2]
[326934466,1715616643386,-1226.6,0.00012879,2]
[326934468,1715616643397,-987.32,0.00012879,2]
[326934469,1715616643407,-987.32,0.00012879,2]
[326934471,1715616643417,-987.32,0.00012879,2]
[326934473,1715616643427,-987.32,0.00012879,2]
[326934475,1715616643438,-987.32,0.00012879,2]
[326934477,1715616643448,-500.0,0.00012879,2]
[326934479,1715616643458,-500.0,0.00012879,2]
[326934481,1715616643468,-500.0,0.00012879,2]
[326934483,1715616643478,-500.0,0.00012879,2]
[326934485,1715616643488,-500.0,0.00012879,2]
[326934487,1715616643499,-500.0,0.00012879,2]
[326934489,1715616643509,-2172.90481225,0.00012879,2]
[326934491,1715616643519,-694.0,0.0001288,2]
[326934493,1715616643529,-183065.07193208,0.0001288,2]
[326934736,1715616645978,-625.0,0.0001288,2]
[326934738,1715616645988,-2378.1,0.0001288,2]
[326934974,1715617288909,15712.85699166,0.00011,2]
[326934978,1715617319980,167.49,9.444e-05,2]
[326934979,1715617343702,30000.0,0.000115,2]
[326934980,1715617359026,30000.0,0.00011,2]
[326934985,1715617392735,30000.0,0.00011,2]
[326934986,1715617422401,697.66335943,0.00011706,2]
[326934987,1715617512876,2501.84133822,0.00011,2]
[326934991,1715617653519,275.469163,0.00011704,2]
[326934992,1715617793001,155.60564957,0.00011671,2]
[326934999,1715617832494,167.45,9.411e-05,2]
[326935017,1715617834213,-299.99,0.00011763,2]
[326935018,1715617834268,-532.41,0.00011763,2]
[326935019,1715617834278,-250.0,0.00011771,2]
[326935020,1715617834287,-2054.74,0.00011774,2]
[326935021,1715617834297,-3046.43210974,0.00011783,2]
[326935022,1715617834312,-20853.56789026,0.00011783,2]
[326935023,1715617834321,-815.19,0.00011787,2]
[326935024,1715617834331,-1716.28,0.00011803,2]
[326935025,1715617834340,-500.0,0.00011806,2]
[326935026,1715617834351,-150.0,0.00011817,2]
[326935027,1715617834360,-1000.0,0.00011873,2]
[326935028,1715617834370,-184.570634,0.00012357,2]
[326935029,1715617834379,-299.99,0.00012357,2]
[326935030,1715617834389,-15404.91100664,0.000125,2]
[326935031,1715617834398,-418.939,0.00012529,2]
[326935032,1715617834407,-438.0,0.00012529,2]
[326935033,1715617834416,-1131.179,0.00012529,2]
[326935034,1715617834425,-212.0,0.00012529,2]
[326935035,1715617834434,-296.178,0.00012529,2]
[326935036,1715617834443,-2459.893,0.00012529,2]
[326935037,1715617834453,-600.0,0.00012602,2]
[326935038,1715617834462,-342.04985786,0.00012602,2]
[326935039,1715617834471,-500.0,0.00012602,2]
[326935040,1715617834481,-1325.91046335,0.00012628,2]
[326935041,1715617834491,-184.570634,0.00012666,2]
[326935042,1715617834500,-9739.94537602,0.00012749,2]
[326935043,1715617834510,-20000.0,0.00012749,2]
[326935044,1715617834519,-20000.0,0.00012749,2]
[326935045,1715617834528,-20000.0,0.00012749,2]
[326935046,1715617834542,-688.80134,0.0001275,2]
[326935047,1715617834552,-2232.7177,0.0001275,2]
[326935049,1715617834565,-1422.5127,0.0001275,2]
[326935051,1715617834575,-31680.4369,0.0001275,2]
[326935052,1715617834584,-283.3975,0.0001275,2]
[326935053,1715617834593,-219.84245986,0.00012751,2]
[326935054,1715617834602,-180.77095793,0.00012753,2]
[326935056,1715617834610,-200.01599054,0.00012753,2]
[326935057,1715617834620,-1132.77178978,0.0001277,2]
[326935058,1715617834629,-1000.0,0.00012776,2]
[326935059,1715617834639,-200.0,0.00012777,2]
[326935060,1715617834651,-1000.0,0.00012777,2]
[326935061,1715617834661,-500.0,0.00012777,2]
[326935062,1715617834671,-500.0,0.0001278,2]
[326935063,1715617834681,-3350.42167768,0.0001278,2]
[326935064,1715617834691,-1132.77178974,0.00012782,2]
[326935065,1715617834700,-1132.77178974,0.00012794,2]
[326935066,1715617834709,-2000.0,0.000128,3]
[326935067,1715617834718,-1132.77178974,0.00012805,2]
[326935068,1715617834727,-1132.77178974,0.00012817,2]
[326935069,1715617834741,-1132.77178974,0.00012829,2]
[326935070,1715617834750,-3350.42167767,0.0001284,2]
[326935071,1715617834759,-1132.77178974,0.00012841,2]
[326935072,1715617834768,-215.52248085,0.00012849,2]
[326935073,1715617834778,-630.0,0.0001285,2]
[326935074,1715617834787,-77857.03135056,0.0001285,6]
[326935075,1715617834799,-3317.77780899,0.0001285,6]
[326935076,1715617834819,-25765.93604972,0.0001285,6]
[326935077,1715617834831,-6349.4,0.0001285,6]
[326935078,1715617834842,-15054.4667413,0.0001285,6]
[326935079,1715617834853,-10137.88226977,0.0001285,6]
[326935080,1715617834864,-888.50890406,0.0001285,6]
[326935081,1715617834875,-3359.54880777,0.0001285,6]
[326935092,1715617838426,-16452.25562989,0.0001285,6]
[326935093,1715617838472,-64625.08295897,0.0001285,6]
[326935094,1715617838487,-83170.63715689,0.0001285,6]
[326935101,1715617840380,-1300.65281238,0.0001285,6]
[326935102,1715617842081,-293.33631269,0.0001285,6]
[326935198,1715617843247,-6266.66063231,0.00011903,2]
[326935199,1715617843281,-3733.33936769,0.00011903,2]
[326935200,1715617843290,-1059.0,0.00012524,2]
[326935201,1715617843299,-352.1088061,0.00012753,2]
[326935202,1715617843308,-26588.29946285,0.0001285,6]
[326935203,1715617843488,-242334.72548034,0.0001285,6]
[326935239,1715617847708,-104026.91959565,0.0001285,6]
[326935253,1715617847834,-1032.00476579,0.0001285,6]
[326935254,1715617847845,-3169.914323,0.0001285,6]
[326935258,1715617847949,-9772.42612474,0.0001285,6]
[326935259,1715617847961,-287.23820353,0.0001285,6]
[326935270,1715618121713,164.29,0.00011657,2]
[326935271,1715618145216,495.840089,0.00011686,2]
[326935272,1715618169467,1000.0,0.00011682,2]
[326935274,1715618210084,250.0,0.00011684,2]
[326935275,1715618211375,13695.05,0.00011684,2]
[326935277,1715618231658,1349.96,0.00011684,2]
[326935278,1715618232768,1878.05,0.00011647,2]
[326935281,1715618266986,1139.65,0.00011255,2]
[326935282,1715618277291,18674.17,0.00011252,2]
[326935283,1715618330275,226.69,0.00011256,2]
[326935286,1715618381447,200.0,0.00011255,2]
[326935287,1715618419435,234.11,0.00011243,2]
[326935289,1715618452030,153.23,0.00011657,2]
[326935290,1715618457685,150.78,0.00010959,2]
[326935291,1715618466606,843.09,0.00011657,2]
[326935292,1715618467206,353.47386846,8.432e-05,2]
[326935294,1715618513384,4962.79668519,0.0001167,2]
[326935296,1715618563544,1500.0,0.00011267,2]
[326935297,1715618590943,250.0,0.00011265,2]
[326935298,1715618619030,1291.4,0.00011368,2]
[326935300,1715618644246,200.0,0.00011288,2]
[326935301,1715618654018,440.08,0.00011291,3]
[326935302,1715618678411,1852.42,0.00011291,2]
[326935303,1715618709728,250.0,0.00011279,2]
[326935315,1715618772509,170.0,0.00011269,2]
[326935316,1715618777799,211.11,0.00011363,2]
[326935317,1715618778062,211.11,0.00011395,2]
[326935318,1715618778296,211.11,0.00011426,2]
[326935319,1715618778540,211.11,0.00011457,2]
[326935320,1715618778792,211.11,0.00011488,2]
[326935321,1715618779025,211.11,0.00011519,2]
[326935322,1715618779314,211.11,0.0001155,2]
[326935323,1715618779546,211.11,0.00011582,2]
[326935324,1715618779802,211.11,0.00011613,2]
[326935325,1715618780056,211.11,0.00011644,2]
[326935326,1715618780314,211.11,0.00011675,2]
[326935327,1715618792294,528.53641413,0.00011705,2]
[326935328,1715618804246,3767.9023056,0.00011705,2]
[326935329,1715618814675,2141.24,0.0001131,2]
[326935330,1715618836664,1847.03,0.00011309,2]
[326935331,1715618862408,38376.44,0.00011399,2]
[326935333,1715618941770,23067.87,0.00011383,2]
[326935337,1715619010595,1250.0,0.00011,2]
[326935343,1715619032255,-211.11,0.00011706,2]
[326935344,1715619032266,-211.11,0.00011737,2]
[326935345,1715619032276,-6059.46123966,0.0001175,2]
[326935346,1715619032288,-1997.4276,0.0001175,2]
[326935347,1715619032300,-1042.16772,0.0001175,2]
[326935348,1715619032315,-1309.51,0.0001175,2]
[326935349,1715619032327,-1486.7837916,0.0001175,2]
[326935350,1715619032338,-27882.56025833,0.0001175,2]
[326935351,1715619032420,-9082.10939041,0.0001175,2]
[326935352,1715619032430,-211.11,0.00011769,2]
[326935353,1715619032440,-211.11,0.000118,2]
[326935354,1715619032449,-163.02,0.00011807,2]
[326935355,1715619032458,-150.0,0.00011808,2]
[326935356,1715619032469,-211.11,0.00011831,2]
[326935357,1715619032478,-150.99,0.00011837,2]
[326935358,1715619032487,-8538.39123728,0.00011837,2]
[326935359,1715619032498,-1240.78981057,0.00011837,2]
[326935360,1715619032511,-220.80895215,0.00011837,2]
[326935361,1715619032521,-211.11,0.00011862,2]
[326935362,1715619032531,-499.99,0.00011862,2]
[326935363,1715619032542,-211.11,0.00011893,2]
[326935364,1715619032551,-4208.46262265,0.00011903,2]
[326935365,1715619032562,-211.11,0.00011925,2]
[326935366,1715619032572,-211.11,0.00011956,2]
[326935367,1715619032582,-81.96661211,0.00012233,2]
[326935368,1715619032593,-327.98271938,0.00012233,2]
[326935369,1715619032603,-327.03936688,0.00012234,2]
[326935370,1715619032612,-1293.30653448,0.00012234,2]
[326935371,1715619032621,-150.0,0.00012356,2]
[326935372,1715619032630,-305.837457,0.00012357,2]
[326935373,1715619032640,-565.388727,0.00012357,2]
[326935376,1715619032650,-170.580073,0.00012357,2]
[326935379,1715619032659,-4862.485855,0.00012357,2]
[326935382,1715619032668,-3924.36195472,0.00012357,2]
[326935385,1715619032679,-13224.73225428,0.00012357,2]
[326935388,1715619032688,-386.89277,0.00012357,2]
[326935391,1715619032697,-7576.123435,0.00012357,2]
[326935395,1715619032706,-210.4629,0.000124,2]
[326935397,1715619032715,-150.0,0.000124,2]
[326935400,1715619032724,-1008.0156,0.00012411,2]
[326935405,1715619032734,-1000.0,0.00012411,2]
[326935408,1715619032743,-2500.0,0.00012411,2]
[326935411,1715619032752,-59177.4489243,0.000125,2]
[326935415,1715619032761,-150.0,0.000125,2]
[326935418,1715619032770,-150.0,0.000125,2]
[326935422,1715619032779,-150.0,0.000125,2]
[326935423,1715619032789,-305.837457,0.00012511,2]
[326935425,1715619032798,-565.388727,0.00012511,2]
[326935427,1715619032807,-4862.485855,0.00012511,2]
[326935430,1715619032816,-386.89277,0.00012511,2]
[326935432,1715619032825,-17149.094209,0.00012511,2]
[326935433,1715619032834,-7576.123435,0.00012511,2]
[326935436,1715619032844,-1226.0,0.00012524,2]
[326935437,1715619032853,-1014.203,0.00012524,2]
[326935440,1715619032863,-1261.0,0.00012524,2]
[326935441,1715619032872,-3502.68349513,0.00012551,2]
[326935443,1715619032883,-500.0,0.00012602,2]
[326935444,1715619032892,-500.0,0.00012602,2]
[326935445,1715619032901,-171.02,0.00012625,2]
[326935446,1715619032912,-305.837457,0.00012666,2]
[326935447,1715619032922,-565.388727,0.00012666,2]
[326935448,1715619032931,-4862.485855,0.00012666,2]
[326935449,1715619032941,-386.89277,0.00012666,2]
[326935450,1715619032951,-17149.094209,0.00012666,2]
[326935451,1715619032961,-5733.70402532,0.00012666,2]
[326935452,1715619032974,-626.85191041,0.00012666,2]
[326935453,1715619032985,-1215.56749927,0.00012666,2]
[326935454,1715619032996,-200.0,0.00012699,2]
[326935455,1715619033005,-373.09139,0.0001272,2]
[326935456,1715619033014,-1499.3143,0.00012748,2]
[326935457,1715619033024,-170.20693404,0.0001275,2]
[326935458,1715619033039,-348.5104999,0.0001275,2]
[326935459,1715619033048,-620.61301592,0.0001275,2]
[326935460,1715619033064,-379.38698408,0.0001275,2]
[326935461,1715619033074,-2716.1117,0.0001275,2]
[326935462,1715619033084,-500.0,0.0001275,2]
[326935463,1715619033093,-169.3421,0.0001275,2]
[326935464,1715619033103,-2002.12349214,0.0001275,2]
[326935465,1715619033114,-35461.81295496,0.0001275,2]
[326935494,1715619038157,-714.662132,0.00011705,2]
[326935496,1715619038212,-3122.80448746,0.00011705,2]
[326935497,1715619038265,-318.76,0.00011705,2]
[326935498,1715619038279,-2098.15786029,0.00011705,2]
[326935499,1715619038289,-179.85424468,0.00012722,2]
[326935500,1715619038299,-1111.95320419,0.0001275,2]
[326935501,1715619038311,-818.49731349,0.0001275,2]
[326935502,1715619038323,-568.01093522,0.0001275,2]
[326935503,1715619038333,-19.86246478,0.00012751,2]
[326935504,1715619038371,-156.01150311,0.00012751,2]
[326935505,1715619038380,-190.28879712,0.00012776,2]
[326935506,1715619038393,-153.69969977,0.00012777,2]
[326935507,1715619038405,-46.30030023,0.00012777,2]
[326935508,1715619038414,-1000.0,0.00012777,2]
[326935509,1715619038424,-500.0,0.00012777,2]
[326935510,1715619038433,-471.98824578,0.00012778,2]
[326935511,1715619038442,-171.52880002,0.0001278,2]
[326935512,1715619038451,-170.20693403,0.0001278,2]
[326935513,1715619038461,-179.85424468,0.0001278,2]
[326935514,1715619038470,-471.98824572,0.00012789,2]
[326935515,1715619038479,-471.98824572,0.000128,2]
[326935516,1715619038489,-471.98824572,0.00012811,2]
[326935517,1715619038498,-305.837457,0.0001282,2]
[326935518,1715619038507,-565.388727,0.0001282,2]
[326935519,1715619038517,-4862.485855,0.0001282,2]
[326935520,1715619038526,-386.89277,0.0001282,2]
[326935521,1715619038536,-17149.094209,0.0001282,2]
[326935522,1715619038545,-7576.123435,0.0001282,2]
[326935524,1715619038554,-471.98824572,0.00012822,2]
[326935526,1715619038564,-348.5104999,0.00012825,2]
[326935528,1715619038573,-471.98824572,0.00012833,2]
[326935530,1715619038582,-471.98824572,0.00012845,2]
[326935532,1715619038591,-155.0,0.00012848,2]
[326935533,1715619038604,-405.58021719,0.00012848,2]
[326935535,1715619038614,-640.02585259,0.00012848,2]
[326935536,1715619038623,-12701.21343627,0.0001285,6]
[326935538,1715619040235,-1452.332788,0.0001285,6]
[326935539,1715619042369,-1242.08852631,0.0001285,6]
[326935540,1715619042383,-500.0,0.0001285,6]
[326935541,1715619042399,-3362.0,0.0001285,6]
[326935542,1715619042411,-854.9999999,0.0001285,6]
[326935543,1715619042433,-1561.28719289,0.0001285,6]
[326935544,1715619042620,-23785.72077905,0.0001285,6]
[326935548,1715619043026,-31075.354,0.0001285,6]
[326935550,1715619043048,-885.15344221,0.0001285,6]
[326935553,1715619043060,-296.92,0.0001285,6]
[326935556,1715619043073,-309.12639055,0.0001285,6]
[326935561,1715619043086,-325.0084172,0.0001285,6]
[326935564,1715619043099,-1908.24079999,0.0001285,6]
[326935567,1715619043111,-4234.17251721,0.0001285,6]
[326935587,1715619043352,-912.78,0.00011904,2]
[326935588,1715619043362,-1621.24923427,0.0001285,6]
[326935589,1715619043374,-13698.37217415,0.0001285,6]
[326935590,1715619043387,-814.22625206,0.0001285,6]
[326935591,1715619043519,-9940.76437508,0.0001285,6]
[326935592,1715619043532,-3096.48244863,0.0001285,6]
[326935593,1715619043580,-6325.056,0.0001285,6]
[326935594,1715619043592,-40612.16316,0.0001285,6]
[326935595,1715619043643,-8456.60988793,0.0001285,6]
[326935596,1715619043656,-806.1100004,0.0001285,6]
[326935597,1715619043668,-686.000002,0.0001285,6]
[326935616,1715619046253,-150.0,0.00012524,2]
[326935618,1715619046263,-409.6956645,0.00012849,2]
[326935620,1715619046272,-62687.75159827,0.0001285,6]
[326935624,1715619046309,-541.3039476,0.0001285,6]
[326935626,1715619046320,-1487.19999999,0.0001285,6]
[326935631,1715619046484,-1578.36830522,0.0001285,6]
[326935632,1715619046497,-879.75832471,0.0001285,6]
[326935633,1715619046539,-442.55742415,0.0001285,6]
[326935638,1715619055167,1445.56,0.0003,120]
[326935640,1715619092120,2168.35,0.0003,120]
[326935650,1715619205110,750.52330383,0.0001159,2]
[326935651,1715619259099,572.90279862,0.0001159,2]
[326935652,1715619278787,173.40084245,0.0001159,2]
[326935655,1715619292814,157.86958537,0.0001159,2]
[326935657,1715619309955,16414.74284287,0.0001159,2]
[326935663,1715619422950,181.46,9.45e-05,2]
[326935665,1715619488236,2416.469174,0.00011667,2]
[326935675,1715619710909,272.61333472,0.00011643,2]
[326935682,1715619804955,190.58,0.00011563,2]
[326935683,1715619877814,1921.36,0.0001166,2]
[326935684,1715619902985,250.0,0.00011698,2]
[326935694,1715620145665,168.55,0.00011697,2]
[326935695,1715620166737,157.62535748,0.00011705,2]
[326935702,1715620232252,106986.9937201,0.000115,2]
[326935705,1715620232571,-654.22,0.00011716,2]
[326935706,1715620232583,-25.5299629,0.00011716,2]
[326935707,1715620232593,-164.98,0.00011718,2]
[326935708,1715620232602,-273.2739829,0.00011728,2]
[326935709,1715620232614,-194.2360171,0.00011728,2]
[326935710,1715620232623,-178.20134776,0.0001173,2]
[326935711,1715620232720,-71.79865224,0.0001173,2]
[326935712,1715620232729,-862.4196703,0.00011744,2]
[326935713,1715620232738,-2616.54635215,0.00011744,2]
[326935714,1715620232748,-157.05,0.00011769,2]
[326935715,1715620232756,-1941.84023307,0.00011781,7]
[326935716,1715620232768,-700.37715633,0.00011781,7]
[326935717,1715620232777,-618.78882594,0.00011781,7]
[326935718,1715620232786,-154.68192816,0.00011781,7]
[326935719,1715620232795,-7470.29265202,0.00011781,7]
[326935720,1715620232804,-157.05,0.00011828,2]
[326935721,1715620232814,-1000.0,0.00011855,2]
[326935722,1715620232823,-404.44,0.00011855,2]
[326935723,1715620232833,-1296.68818184,0.00012234,2]
[326935724,1715620232842,-401.6954,0.00012411,2]
[326935725,1715620232851,-1261.0,0.00012524,2]
[326935726,1715620232860,-1226.0,0.00012524,2]
[326935727,1715620232869,-306.26,0.000126,2]
[326935728,1715620232881,-500.0,0.00012602,2]
[326935729,1715620232890,-500.0,0.00012602,2]
[326935730,1715620232900,-6109.2715,0.000127,2]
[326935731,1715620232910,-373.09139,0.0001272,2]
[326935732,1715620232927,-155.96100922,0.0001275,2]
[326935733,1715620232939,-288.72057434,0.0001275,2]
[326935734,1715620232948,-158.46539353,0.0001275,2]
[326935735,1715620232963,-373.09139,0.0001275,2]
[326935737,1715620232973,-60407.55,0.0001275,2]
[326935754,1715620233245,-1000.0,0.0001275,2]
[326935755,1715620233255,-9678.03,0.0001275,2]
[326935756,1715620233264,-574.00112,0.0001276,2]
[326935757,1715620233274,-348.5104999,0.00012774,2]
[326935758,1715620233283,-200.0,0.00012777,2]
[326935759,1715620233293,-1000.0,0.00012777,2]
[326935760,1715620233302,-500.0,0.00012777,2]
[326935761,1715620233311,-196.66176905,0.0001278,2]
[326935762,1715620233320,-190.28879711,0.0001278,2]
[326935763,1715620233329,-373.09139,0.0001279,2]
[326935764,1715620233339,-196.66176905,0.00012791,2]
[326935765,1715620233348,-552.35,0.000128,2]
[326935766,1715620233357,-1215.88,0.000128,2]
[326935767,1715620233368,-1116.80722589,0.000128,2]
[326935768,1715620233378,-196.66176905,0.00012802,2]
[326935769,1715620233388,-196.66176905,0.00012813,2]
[326935770,1715620233402,-196.66176905,0.00012824,2]
[326935771,1715620233413,-574.00112,0.0001283,2]
[326935772,1715620233424,-196.66176905,0.00012835,2]
[326935773,1715620233433,-196.66176905,0.00012845,2]
[326935774,1715620233442,-373.09139,0.00012849,2]
[326935775,1715620233452,-373.09139,0.00012849,2]
[326935776,1715620233468,-574.00112,0.00012849,2]
[326935777,1715620233476,-574.00112,0.00012849,2]
[326935778,1715620233489,-9108.91918667,0.0001285,6]
[326935779,1715620233504,-338.64657222,0.0001285,6]
[326935780,1715620233515,-467.48613218,0.0001285,6]
[326935781,1715620233526,-2253.71037969,0.0001285,6]
[326935782,1715620233538,-4800.5753998,0.0001285,6]
[326935794,1715620238488,-364.09293867,0.00011715,2]
[326935795,1715620238499,-200.0,0.00011904,2]
[326935796,1715620238509,-141.43268364,0.0001285,6]
[326935797,1715620238523,-423.31575,0.0001285,6]
[326935798,1715620238725,-120937.28413155,0.0001285,6]
[326935799,1715620238737,-9615.79417194,0.0001285,6]
[326935819,1715620240675,-659.29760523,0.0001285,6]
[326935820,1715620240790,-299.8197336,0.0001285,6]
[326935821,1715620240801,-340.0090999,0.0001285,6]
[326935822,1715620240813,-953.445,0.0001285,6]
[326935823,1715620241055,-631.17512,0.0001285,6]
[326935824,1715620241067,-2930.325011,0.0001285,6]
[326935825,1715620241078,-7040.53398146,0.0001285,6]
[326935826,1715620241089,-359.38098,0.0001285,6]
[326935827,1715620241166,-564.421,0.0001285,6]
[326935854,1715620243549,-1135.18675661,0.0001285,6]
[326935871,1715620246647,-126579.71170007,0.0001285,6]
[326935872,1715620246931,-521.93089846,0.0001285,6]
[326936624,1715620407790,170.0,0.0001163,2]
[326936630,1715620441049,1610.05,0.00011613,2]
[326936634,1715620455351,23900.0,0.00011595,2]
[326936635,1715620459038,6917.16,0.00011595,2]
[326936641,1715620504777,16000.0,0.0003,120]
[326936652,1715620584105,150.0,0.00011416,2]
[326936657,1715620606652,207.25954279,0.00011705,2]
[326936658,1715620608674,155.0,0.00011705,2]
[326936659,1715620610276,157.62535748,0.00011705,2]
[326936660,1715620613067,364.09293867,0.00011705,2]
[326936663,1715620623682,2360.79430003,0.00011705,2]
[326936664,1715620626406,7511.44304258,0.00011705,2]
[326936665,1715620627266,2327.05522688,0.00011705,2]
[326936666,1715620627982,1296.99408667,0.00011705,2]
[326936669,1715620632860,2184.7567704,0.00011705,2]
[326936670,1715620633123,155.0,0.00011705,2]
[326936671,1715620633806,405.68231157,0.00011705,2]
[326936673,1715620642387,155.0,0.00011705,2]
[326936674,1715620643997,1292.39021957,0.00011189,2]
[326936677,1715620662425,3087.90524962,0.00011705,2]
[326936679,1715620668181,3026.24071623,0.00011705,2]
[326936681,1715620675234,1010.456,0.0001168,2]
[326936682,1715620679485,193.19,0.00011504,2]
[326936707,1715620852377,250.0,0.00011443,2]
[326936718,1715620943612,1073.03,0.00011494,2]
[326936721,1715620955787,715.6243807,0.000117,2]
[326936725,1715620980298,155.62,0.00011569,2]
[326936726,1715620983692,201.018,0.000191,30]
[326936750,1715621113194,1250.0,0.00011,2]
[326936762,1715621248342,500.0,0.00011326,2]
[326936763,1715621301438,50000.0,0.0003,120]
[326936764,1715621309492,1000.0,0.00011359,2]
[326936765,1715621339871,172.09,0.00011359,2]
[326936772,1715621404772,16000.0,0.0003,120]
[326936777,1715621432529,-155.0,0.00011749,2]
[326936778,1715621432539,-1557.57125797,0.00011749,2]
[326936779,1715621432551,-2716.82803564,0.00011749,2]
[326936780,1715621432560,-150.0,0.00011749,2]
[326936781,1715621432571,-1546.88035637,0.0001175,2]
[326936782,1715621432580,-22623.88577628,0.0001177,2]
[326936783,1715621432589,-363.07775438,0.00011778,2]
[326936784,1715621432599,-157.50997337,0.00011778,2]
[326936785,1715621432608,-155.85581003,0.00011778,2]
[326936786,1715621432617,-968.61235952,0.00011778,2]
[326936787,1715621432627,-699.41070565,0.00011778,2]
[326936788,1715621432637,-2324.60160796,0.00011778,2]
[326936789,1715621432647,-273.90753261,0.00011778,2]
[326936790,1715621432657,-297.13474045,0.00011778,2]
[326936791,1715621432666,-236.10440833,0.00011778,2]
[326936792,1715621432676,-2005.85931335,0.00011778,2]
[326936793,1715621432685,-3036.83733476,0.00011778,2]
[326936794,1715621432694,-365.88429841,0.00011778,2]
[326936795,1715621432705,-1828.52165794,0.00011778,2]
[326936796,1715621432716,-207.05672543,0.00011779,2]
[326936797,1715621432725,-776.05395473,0.00011779,2]
[326936798,1715621432735,-424475.77559406,0.0001178,2]
[326936799,1715621432749,-13577.58281677,0.0001178,2]
[326936800,1715621432769,-4666.6,0.0001178,2]
[326936801,1715621432780,-625.25,0.0001178,2]
[326936802,1715621432792,-244539.59192016,0.0001178,2]
[326936803,1715621432803,-458.87,0.00011781,2]
[326936804,1715621432813,-227347.743801,0.00011781,7]